Cogmind - Beta 16.1 @@@ ROGUE MODE // 2026.02.15 @ 03:36:56 Player: deepledi Result: Destroyed by Y-45 Defender with Heavy Assault Rifle Performance ------------- Evolutions (2) 1000 Regions Visited (5) 1000 Robots Destroyed (117) 585 Value Destroyed (3329) 3329 Prototype IDs (9) 180 Alien Tech Used (0) 0 Bonus (-85) -85 TOTAL SCORE: 6009 Bonus ------- Follower Combat Kills 35 Friendly Fire -120 Cogmind --------- Core Integrity 0/550 Matter 288/300 Energy 300/300 System Corruption 4% Temperature Cool (0) Movement Treading (250) Ox2 Location -8/Storage Parts ------- > --- POWER (1) -------- Enhanced Nuclear Core > --- PROPULSION (4) --- Armored Treads Wheel > --- UTILITY (4) ------ Improved Heat Sink High-capacity Storage Unit Advanced Visual Processing Unit Transmission Jammer > --- WEAPON (2) ------- Autogun Minigun > --- INVENTORY (20) --- Enhanced Nuclear Core Carbon-fiber Leg Titanium Leg Improved Flight Unit Scrap Suit Large Storage Unit Actuator Array Reaction Control System Remote Shield System Shield Beam Rifle Beamcaster Enhanced Autogun Enhanced Autogun Flak Cannon Grenade Launcher Improved Datajack Great Maul Peak State ------------ > --- POWER ------------ Enhanced Nuclear Core > --- PROPULSION ------- Aluminum Leg Carbon-fiber Leg Carbon-fiber Leg Titanium Leg > --- UTILITY ---------- High-capacity Storage Unit Machine Analyzer Improved Sensor Array Improved Medium Armor Plating > --- WEAPON ----------- Autogun Autogun > --- INVENTORY -------- Enhanced Nuclear Core Enhanced Nuclear Core Armored Treads Wheel Scrap Suit Improved Heat Sink Large Storage Unit Advanced Visual Processing Unit Actuator Array Transmission Jammer Reaction Control System Improved Medium Armor Plating System Shield Improved Medium Laser Heavy Assault Rifle Autogun Grenade Launcher Improved Datajack Great Maul [Rating: 36] Favorites ----------- Power Heavy Ion Engine Engine Heavy Ion Engine Power Core Enhanced Nuclear Core Propulsion Carbon-fiber Leg Treads Light Treads Leg Carbon-fiber Leg Wheel Wheel Flight Unit Improved Flight Unit Utility Large Storage Unit Device Sensor Array Storage Large Storage Unit Processor Machine Analyzer Hackware Hacking Suite Protection Hardened Light Armor Plating Weapon Autogun Energy Gun Improved EM Shotgun Ballistic Gun Autogun Launcher Grenade Launcher Impact Weapon Great Maul Build | -11 -10 -9 -9 -8 -8 ------- Run | Yrd Mat Mat Min Mat Sto Slots Evolved 4 | . . 2 . 2 . Power . | . . . . . . Propulsion 2 | . . 1 . 1 . Utility 2 | . . 1 . 1 . Weapon . | . . . . . . Parts Attached 74 | 6 4 27 . 22 15 Power 9 | 1 . 4 . 2 2 Engine 6 | 1 . 4 . 1 . Core 3 | . . . . 1 2 Reactor . | . . . . . . Propulsion 24 | 2 1 9 . 8 4 Treads 8 | . 1 6 . 1 . Leg 13 | . . 3 . 7 3 Wheel 2 | 2 . . . . . Hover . | . . . . . . Flight 1 | . . . . . 1 Utility 20 | 1 3 5 . 7 4 Device 7 | . 1 2 . 2 2 Storage 3 | 1 1 . . 1 . Processor 2 | . . . . 1 1 Hackware 1 | . 1 . . . . Protection 7 | . . 3 . 3 1 Artifact . | . . . . . . Weapon 21 | 2 . 9 . 5 5 Energy Gun 2 | . . 1 . 1 . Energy Cannon . | . . . . . . Ballistic Gun 17 | 2 . 8 . 3 4 Ballistic Cannon . | . . . . . . Launcher 1 | . . . . . 1 Special Weapon . | . . . . . . Impact Weapon 1 | . . . . 1 . Slashing Weapon . | . . . . . . Piercing Weapon . | . . . . . . Special Melee Weapon . | . . . . . . Unidentified Prototypes 6 | . . 2 . 2 2 Parts Lost 25 | . . 8 . 10 7 Power 2 | . . 1 . . 1 Propulsion 9 | . . 3 . 3 3 Utility 10 | . . 3 . 5 2 Weapon 4 | . . 1 . 2 1 Highest Loss Streak 7 | . . 4 . 4 7 To Critical Strikes . | . . . . . . Average Backups 15 | 2 10 14 14 18 18 Power 1 | . 1 . 1 1 1 Propulsion 2 | 1 4 1 2 1 2 Utility 6 | . 2 4 4 8 7 Weapon 5 | . 2 7 6 5 4 Tool/Special . | . . . . . . Unused Backups 29 | . 2 9 . 6 12 Power 4 | . . 1 . 3 . Propulsion 6 | . 2 2 . 1 1 Utility 10 | . . 1 . 2 7 Weapon 8 | . . 5 . . 3 Tool/Special 1 | . . . . . 1 Average Slot Usage (%) 97 | . 98 97 100 97 91 Engine 7 | . 14 10 11 4 . Core 2 | . . . . 4 8 Treads 5 | . 11 14 . . 2 Leg 22 | . . 10 33 35 25 Wheel 3 | . 15 7 . . 1 Device 8 | . 1 10 11 8 4 Storage 10 | . 14 11 11 9 9 Processor 4 | . . . . 8 9 Hackware 1 | . 11 1 . . . Protection 8 | . . 9 11 8 10 Ballistic Gun 19 | . 27 21 22 16 16 Peak Build Rating 36 | 6 10 24 23 36 36 Average Rating 24 | 4 9 16 22 33 31 On Entrance 15 | . 6 10 23 23 31 Avg Prop Armor Cover (%) 11 | . 10 11 . 6 12 Naked Turns . | . . . . . . Heaviest Build 71 | 12 27 40 40 63 71 Greatest Support 60 | 20 20 45 45 60 52 Greatest Overweight (x) 5 | 1 2 3 . 1 5 Average Overweight (x) . | . 1 1 . . 1 Largest Inventory Capacity 20 | 8 15 15 15 20 20 Average Capacity 16 | 7 12 15 15 19 20 Most Carried 20 | 6 15 15 15 20 20 Average Carried 16 | 3 10 14 14 19 19 Final Capacity 20 | 8 15 15 15 20 20 Final Carried 20 | 6 15 15 15 20 19 Class Distribution -------------------- 90% | Mutant 9% | Scavenger-Mutant Dominant Class ---------------- Mutant | -10/Materials Mutant | -9/Materials Mutant | -9/Mines Mutant | -8/Materials Mutant | -8/Storage Resources | -11 -10 -9 -9 -8 -8 ----------- Run | Yrd Mat Mat Min Mat Sto Matter Collected 3905 | 214 344 1213 76 1236 822 Remotely . | . . . . . . Salvage Created 4466 | . 309 1525 111 1433 1088 Parts 257 | . 20 91 13 85 48 Haulers Intercepted 7 | . 1 3 . 2 1 Recyclers Shooed 5 | . 3 1 . 1 . Parts Field Recycled . | . . . . . . Retrieved Matter . | . . . . . . Parts Self-Destructed . | . . . . . . Prevented . | . . . . . . Parts Restored . | . . . . . . Kills | -11 -10 -9 -9 -8 -8 ------- Run | Yrd Mat Mat Min Mat Sto Combat Hostiles Destroyed 93 | . 8 30 7 28 20 Guns 91 | . 8 30 7 28 18 AOE 1 | . . . . . 1 Classes Destroyed 10 | . 5 2 . 1 2 Worker 1 | . . . . . 1 Hauler 7 | . 1 3 . 2 1 Recycler 4 | . . 3 . 1 . Operator 2 | . 1 . . 1 . Watcher 9 | . 3 4 . 2 . Swarmer 30 | . 6 10 7 7 . Grunt 42 | . 2 13 . 14 13 Duelist 2 | . . . . 1 1 Protector 1 | . . . . . 1 Sentry 18 | . . 7 . 6 5 Thug 1 | . . . . . 1 Best Kill Streak 7 | . 4 7 4 6 7 Combat Bots Only 7 | . 3 6 4 6 7 Max Kills in Single Turn 2 | . 1 1 1 1 2 Gunslinging . | . . . . . . Exploded 1 | . . . . . 1 Melee . | . . . . . . Uniques/NPCs Destroyed . | . . . . . . Combat | -11 -10 -9 -9 -8 -8 -------- Run | Yrd Mat Mat Min Mat Sto Hostile Shots Fired 548 | . 53 161 30 180 124 Missed 129 | . 22 39 6 38 24 Hits 419 | . 31 122 24 142 100 Melee 5 | . . . . 1 4 Projectile 414 | . 31 122 24 141 96 Critical Strikes 16 | . . 2 . 7 7 Damage Taken 5781 | . 306 1530 197 2103 1645 Core 833 | . 127 128 18 308 252 Absorbed by Shields . | . . . . . . Ignored by Resistances 17 | . . . . . 17 Regen/Repaired (Parts) 312 | . 119 149 . 44 . Core Remaining (%) 70 | 100 49 . 63 . . Volleys Fired 371 | . 43 126 11 118 73 Largest 2 | . 2 2 2 2 2 Hottest 53 | . 40 46 46 46 53 Shots Fired 721 | . 86 244 22 232 137 Gun 717 | . 86 244 22 232 133 Cannon . | . . . . . . Launcher 4 | . . . . . 4 Special . | . . . . . . Kinetic 717 | . 86 244 22 232 133 Thermal . | . . . . . . Explosive 4 | . . . . . 4 Electromagnetic . | . . . . . . Robot Hit Streak 30 | . 6 30 3 13 11 Robot Miss Streak 6 | . 4 6 2 5 5 Penetration Max . | . . . . . . Secondary Targets 17 | . 2 4 2 4 5 Max Gunslinging Chain 1 | . 1 1 1 1 1 Shots Hit Robots 449 | . 46 161 10 147 85 Core Hits 199 | . 18 60 7 68 46 Critical Kills 2 | . . . . . 2 Critical Parts Destroyed 3 | . . 1 . 1 1 Critical Strikes 6 | . . 2 . 1 3 Destroy 5 | . . 2 . 1 2 Smash 1 | . . . . . 1 Melee Attacks 36 | . . . . 29 7 Impact 36 | . . . . 29 7 Slashing . | . . . . . . Piercing . | . . . . . . Sneak Attacks 1 | . . . . 1 . Combat Hostiles . | . . . . . . Follow-up Attacks . | . . . . . . Damage Inflicted 7277 | . 619 2372 162 2418 1706 Guns 6886 | . 619 2367 150 2333 1417 Cannons . | . . . . . . Explosions 179 | . . . . . 179 Melee 192 | . . . . 82 110 Ramming 20 | . . 5 12 3 . Kinetic 6886 | . 619 2367 150 2333 1417 Thermal . | . . . . . . Explosive 179 | . . . . . 179 Electromagnetic . | . . . . . . Impact 192 | . . . . 82 110 Slashing . | . . . . . . Piercing . | . . . . . . Highest Corruption 4 | . . 1 1 4 4 Average Corruption 2 | . . 1 1 3 4 Corruption Purged . | . . . . . . Corruption Blocked . | . . . . . . Effects 87 | . . 13 3 51 20 Message Errors 19 | . . 3 1 9 6 Matter Fused 20 | . . 3 . 13 4 Heat Flow Errors 14 | . . 3 . 8 3 Energy Discharges 10 | . . 1 1 5 3 Parts Rejected 2 | . . 1 . 1 . Data Loss (minor) 8 | . . . . 6 2 Data Loss (major) 4 | . . . . 4 . Misfires 3 | . . 1 . 2 . Alerts 3 | . . . 1 1 1 Weapon Failures 4 | . . 1 . 2 1 Overload Shots . | . . . . . . Overflow Damage 35 | . . . . . 35 Projectiles . | . . . . . . Explosions . | . . . . . . Melee 35 | . . . . . 35 Knockbacks 2 | . . . . . 2 Impact 2 | . . . . . 2 Kinetic . | . . . . . . Secondary . | . . . . . . Self-Inflicted Damage . | . . . . . . Shots . | . . . . . . Rammed . | . . . . . . Targets Rammed 4 | . . 1 1 2 . Kicked 4 | . . 1 1 2 . Crushed . | . . . . . . Highest Temperature 305 | . 2 237 . 250 305 Average Temperature 62 | . 2 32 . 53 108 Received Heat Transfer 2307 | . 27 498 . 900 882 Effects 3 | . . . . . 3 Interference 3 | . . . . . 3 Siege Activations . | . . . . . . Martial Activations . | . . . . . . Shielding Activations . | . . . . . . Robots Disrupted . | . . . . . . Combat Hostiles . | . . . . . . Robots Corrupted 1 | . . . . . 1 Combat Hostiles 1 | . . . . . 1 Parts Fried . | . . . . . . Impact Corruptions 1 | . . . . . 1 Robots Melted . | . . . . . . Combat Hostiles . | . . . . . . Parts Melted . | . . . . . . Heat Transferred . | . . . . . . Parts Sabotaged . | . . . . . . Parts Stolen . | . . . . . . Parts Stripped . | . . . . . . Power Chain Reactions . | . . . . . . Alert | -11 -10 -9 -9 -8 -8 ------- Run | Yrd Mat Mat Min Mat Sto Maximum Alert Level 1 | . . 1 . 1 1 Low Security (%) 70 | 100 100 39 100 82 49 Level 1 29 | . . 60 . 17 50 Level 2 . | . . . . . . Level 3 . | . . . . . . Level 4 . | . . . . . . Level 5 . | . . . . . . High Security . | . . . . . . Max Security . | . . . . . . Peak Influence 377 | . 102 330 135 377 348 Initial 154 | . . . 55 . 154 Average 131 | . 39 206 29 112 206 Influence Increases 2811 | . 297 924 160 836 594 Destroy 0b10 Robot/C 1860 | . 160 600 140 560 400 Destroy 0b10 Robot/NC 120 | . 25 50 . 30 15 Destroy Leader 482 | . 38 184 20 138 102 Allied During Kill 1 | . . . . . 1 Successful Hack 71 | . 41 12 . 18 . Select Force Hacks 30 | . . 30 . . . Disable Machine 60 | . . 15 . 15 30 Destroy Structure 52 | . 3 3 . 30 16 Lose Combat Pursuer 135 | . 30 30 . 45 30 Influence Decreases 2509 | . 297 780 304 469 659 Entered New Map 302 | . . . 89 . 213 Time Decay 1787 | . 297 550 215 369 356 Lost Part 250 | . . 80 . 100 70 Lost Ally 20 | . . . . . 20 Purge Threat 150 | . . 150 . . . Squads Dispatched 20 | . . 6 . 4 10 Investigation 6 | . . 3 . 2 1 Extermination . | . . . . . . Reinforcement 6 | . . 3 . 2 1 Assault 2 | . . . . . 2 Garrison 6 | . . . . . 6 Intercept . | . . . . . . Searches Triggered . | . . . . . . Construction Impeded . | . . . . . . Haulers Reinforced . | . . . . . . Active Scanning Responses . | . . . . . . Cargo Convoy Interrupts . | . . . . . . Stealth | -11 -10 -9 -9 -8 -8 --------- Run | Yrd Mat Mat Min Mat Sto Distress Signals 9 | . 1 5 . 1 2 Communications Jammed . | . . . . . . Distress Signals . | . . . . . . Times Spotted 134 | . 16 42 7 41 28 Peak Tracking Total 7 | . 4 7 4 6 6 Tactical Retreats 6 | . 2 1 . 2 1 Traps | -11 -10 -9 -9 -8 -8 ------- Run | Yrd Mat Mat Min Mat Sto Traps Triggered 7 | . 1 4 . 2 . Indirectly . | . . . . . . Trap Hack Attempts . | . . . . . . Triggered . | . . . . . . Disarmed . | . . . . . . Reprogrammed 4 | . 4 . . . . Reused . | . . . . . . Traps Extracted . | . . . . . . Installed . | . . . . . . Triggered . | . . . . . . Machines | -11 -10 -9 -9 -8 -8 ---------- Run | Yrd Mat Mat Min Mat Sto Machines Disabled 4 | . . 1 . 1 2 Max in Single Turn 1 | . . 1 . 1 1 Machines Repaired . | . . . . . . Machines Dismantled . | . . . . . . Machines Sabotaged . | . . . . . . Overloaded Fab Kills . | . . . . . . Hacking | -11 -10 -9 -9 -8 -8 --------- Run | Yrd Mat Mat Min Mat Sto Machines Accessed 26 | . 9 7 . 9 1 Terminals 16 | . 6 4 . 6 . Fabricators . | . . . . . . Repair Stations 4 | . 1 1 . 2 . Recycling Units 3 | . 2 1 . . . Scanalyzers 2 | . . 1 . 1 . Garrison Access 1 | . . . . . 1 Total Hacks 95 | . 36 23 . 34 2 Successful 71 | . 29 19 . 23 . Failed 23 | . 7 4 . 10 2 Catastrophic 4 | . 1 . . 1 2 Database Lockouts 1 | . . . . 1 . Manual 48 | . 25 10 . 13 . Terminals 53 | . 27 11 . 15 . Fabricators . | . . . . . . Repair Stations 15 | . 4 7 . 4 . Recycling Units 9 | . 5 4 . . . Scanalyzers 16 | . . 1 . 15 . Garrison Access 2 | . . . . . 2 Terminal Hacks 22 | . 12 6 . 4 . Record 3 | . . 1 . 2 . Robot Analysis 1 | . 1 . . . . Prototype ID Bank 2 | . 1 1 . . . Level Access Points 1 | . 1 . . . . Branch Access Points 1 | . 1 . . . . Terminal Index 1 | . 1 . . . . Alert Level 3 | . . 2 . 1 . Unreport Threat 1 | . . 1 . . . Locate Traps 1 | . . 1 . . . Reprogram Traps 1 | . 1 . . . . Dispatch Records 2 | . 2 . . . . Security Status 2 | . 2 . . . . Patrol Status 1 | . 1 . . . . Recall Reinforcements 1 | . . . . 1 . Registered Components 1 | . 1 . . . . Fabricator Hacks . | . . . . . . Repair Station Hacks 13 | . 4 6 . 3 . Scan Component 7 | . 2 3 . 2 . Repair 6 | . 2 3 . 1 . Recycling Unit Hacks 4 | . 3 1 . . . Report Inventory 3 | . 2 1 . . . Retrieve Components 1 | . 1 . . . . Scanalyzer 13 | . . . . 13 . Insert Component 5 | . . . . 5 . Analyze 5 | . . . . 5 . Retrieve Study 3 | . . . . 3 . Garrison Access Hacks . | . . . . . . Unauthorized Hacks 19 | . 10 6 . 3 . Terminals 14 | . 8 3 . 3 . Track 1 | . 1 . . . . Botnet 12 | . 6 3 . 3 . Operators 1 | . 1 . . . . Fabricators . | . . . . . . Repair Stations . | . . . . . . Recycling Units 5 | . 2 3 . . . Reject 3 | . 2 1 . . . Mask 1 | . . 1 . . . Tunnel 1 | . . 1 . . . Scanalyzers . | . . . . . . Garrison Access . | . . . . . . Data Cores Recovered 1 | . 1 . . . . Used . | . . . . . . Hacking Detections 21 | . 6 6 . 8 1 Full Trace Events 4 | . . 1 . 2 1 Feedback Events . | . . . . . . Feedback Blocked . | . . . . . . Robot Schematics Acquired . | . . . . . . Robots Built . | . . . . . . Authchips . | . . . . . . Time . | . . . . . . Total Robot Build Rating . | . . . . . . Part Schematics Acquired 5 | . . . . 5 . Parts Built . | . . . . . . Authchips . | . . . . . . Time . | . . . . . . Total Part Build Rating . | . . . . . . Part Studies Acquired 3 | . . . . 3 . Parts Repaired 6 | . 2 3 . 1 . Time 174 | . 52 84 . 38 . Parts Recycled . | . . . . . . Recycled Matter . | . . . . . . Retrieved Matter . | . . . . . . Retrieved Components 1 | . 1 . . . . Parts Scanalyzed 5 | . . . . 5 . Part Schematics Acquired 5 | . . . . 5 . Parts Damaged . | . . . . . . Bothacking | -11 -10 -9 -9 -8 -8 ------------ Run | Yrd Mat Mat Min Mat Sto Used RIF Installer . | . . . . . . Robots Hacked . | . . . . . . Non-combat . | . . . . . . Combat . | . . . . . . Robot Hacks Applied . | . . . . . . Relay Couplers Released . | . . . . . . Fabnet Peak Effective % . | . . . . . . Robots Rewired . | . . . . . . Allies Hacked . | . . . . . . Hacks Repelled . | . . . . . . Allies | -11 -10 -9 -9 -8 -8 -------- Run | Yrd Mat Mat Min Mat Sto Total Allies 2 | . . . . . 2 Largest Group 2 | . . . . . 2 Highest-Rated Group 62 | . . . . . 62 Highest-Rated Ally 31 | . . . . . 31 Total Orders . | . . . . . . Ally Attacks 11 | . . . . . 11 Total Damage 161 | . . . . . 161 Kills 1 | . . . . . 1 Allies Corrupted . | . . . . . . Allies Melted 1 | . . . . . 1 Intel | -11 -10 -9 -9 -8 -8 ------- Run | Yrd Mat Mat Min Mat Sto Active Infowar (turns) 6183 | . . 1738 898 2744 803 Optics 93 | . . . . . 93 Sensors 5248 | . . 1737 898 2613 . Structural 1 | . . 1 . . . Machine Analysis 3372 | . . . . 2662 710 Jamming 169 | . . . . . 169 Robot Analysis Total 1 | . 1 . . . . Derelict Logs Recovered 2 | . . . 2 . . Drone Launches . | . . . . . . Drone Recoveries . | . . . . . . Exploration | -11 -10 -9 -9 -8 -8 ------------- Run | Yrd Mat Mat Min Mat Sto Turns Passed 7421 | 50 754 2172 898 2744 803 Spaces Moved 3347 | 46 496 1002 547 1008 248 Core 14 | 14 . . . . . Treads 163 | . 27 129 . . 7 Legs 2198 | . . 449 547 1008 194 Wheels 972 | 32 469 424 . . 47 Hover . | . . . . . . Flight . | . . . . . . Fastest Speed 50 | 50 80 110 120 120 155 Average Speed 136 | 71 106 128 120 161 183 Slowest Speed 290 | 95 160 260 120 193 290 Overloaded Moves . | . . . . . . Propulsion Burnouts . | . . . . . . Robots Hopped . | . . . . . . Potential Cave-ins . | . . . . . . Cave-ins Triggered . | . . . . . . Exploration Rate (%) 58 | 3 86 66 98 72 28 Regions Visited 5 Branch Regions 2 Pre-discovered Areas 1 | . . 1 . . . Known Exits Taken 2 | . 1 . . 1 . Unknown Exits Taken 3 | 1 . 1 1 . . Scrap Searched 2 | . . . 2 . . Spaces Dug 30 | . . . . 28 2 Terrain Destroyed 43 | . . . . 28 15 Melee 30 | . . . . 28 2 Projectile . | . . . . . . AOE 13 | . . . . . 13 Terrain Rammed . | . . . . . . Walls Destroyed . | . . . . . . Machines Disabled . | . . . . . . Actions | -11 -10 -9 -9 -8 -8 --------- Run | Yrd Mat Mat Min Mat Sto Total 5501 | 61 638 1682 768 1873 479 Wait 1502 | . 78 467 205 653 99 Move 3342 | 45 495 1001 546 1007 248 Hop . | . . . . . . Pick Up 76 | 10 12 24 1 18 11 Fast Attach 22 | 2 2 8 . 8 2 Attach 29 | 4 2 7 . 7 9 Detach 4 | . 1 . . 2 1 Swap 57 | . 2 19 1 17 18 Drop 58 | . 3 29 3 12 11 Fire 371 | . 43 126 11 118 73 Melee 36 | . . . . 29 7 Ram . | . . . . . . Kick 4 | . . 1 1 2 . Crush . | . . . . . . Escape Stasis . | . . . . . . Rewire . | . . . . . . Trap . | . . . . . . Miscellaneous . | . . . . . . Route ------- -11/Scrapyard -10/Materials (discovered 4 exits: *Mat x3 / *Min) -9/Materials (discovered 3 exits: *Mat x2 / [*Min]) -9/Mines (discovered 2 exits: *Mat x2) -8/Materials (discovered 3 exits: [*Fac x2] / *Sto) -8/Storage History --------- Turn | Location | Event 9 | -11/Scrapyard | Discovered new exit (range 15) 51 | -11/Scrapyard | Entered Materials 227 | -10/Materials | Discovered new exit (range 12) 313 | -10/Materials | Build established: Mutant 473 | -10/Materials | Identified exit to Mines 473 | -10/Materials | Identified exit to Materials 553 | -10/Materials | Core integrity fell below 50% 770 | -10/Materials | Repaired Lgt. Treads 798 | -10/Materials | Repaired Assault Rifle 805 | -10/Materials | Entered another Materials area 805 | -9/Materials | Evolved 2 slots: Propulsion x1, Utility x1 1090 | -9/Materials | Lost 4 parts (1p2n1u) 1799 | -9/Materials | Build established: Scavenger-Mutant 1842 | -9/Materials | Repaired Autogun 1869 | -9/Materials | Repaired Sensor Array 1896 | -9/Materials | Repaired Wheel 2294 | -9/Materials | Discovered new exit (range 16) 2423 | -9/Materials | Build established: Mutant 2538 | -9/Materials | Discovered new exit (range 16) 2948 | -9/Materials | Discovered new exit (range 10) 2977 | -9/Materials | Entered Mines 2983 | -9/Mines | Met a Derelict bent on vengeance 3010 | -9/Mines | Learned 2 Materials zone layouts 3026 | -9/Mines | Discovered new exit (range 7) 3114 | -9/Mines | Learned location of 1 exit from Materials 3571 | -9/Mines | Found a Scrap Suit stashed away for nefarious purposes 3575 | -9/Mines | Found Scrap Suit 3624 | -9/Mines | A weapon hastily lodged in a ceiling crevice suddenly fell to the ground 3866 | -9/Mines | Discovered new exit (range 7) 3875 | -9/Mines | Entered Materials 3875 | -8/Materials | Evolved 2 slots: Propulsion x1, Utility x1 3876 | -8/Materials | Identified exit to Storage 4681 | -8/Materials | Repaired Carbon-fiber Leg 5072 | -8/Materials | Discovered new exit (range 7) 5289 | -8/Materials | Lost 4 parts (2n2w) 5800 | -8/Materials | Core integrity fell below 50% 6075 | -8/Materials | Central database locked down 6408 | -8/Materials | Discovered new exit (range 15) 6619 | -8/Materials | Entered Storage 7114 | -8/Storage | Met a pair of Derelict thieves 7146 | -8/Storage | Garrison activated, responded to threat 7181 | -8/Storage | Core integrity fell below 20% 7258 | -8/Storage | Destroyed 7 combat bots 7259 | -8/Storage | Lost 7 parts (1p3n2u1w) 7422 | -8/Storage | Destroyed by Y-45 Defender with Heavy Assault Rifle Last Messages --------------- 07352_ System corrupted: Heat flow error (+118). 07354_ R-06 Scavenger collects Particle Gun. 07355_ U-05 Engineer builds a Wall. 07356_ G-47 Trooper knocked back. 07359_ G-47 Trooper suffers critical hit (Smash). 07359_ Destroyed Lgt. Nuclear Core. 07359_ G-47 Trooper system corrupted by crushing effect. 07359_ G-47 Trooper knocked back. 07359_ R-06 Scavenger collects Imp. Heat Sink. 07361_ K-01 Serf cleans the Heavy Doors. 07361_ U-05 Engineer builds a Wall. 07365_ Acquired 39 matter. 07366_ K-01 Serf collects debris. 07369_ K-01 Serf cleans the Heavy Doors. 07373_ K-01 Serf cleans the Door Terminal. 07378_ K-01 Serf collects debris. 07399_ W-25 Informer sends out distress signal. 07402_ Acquired 10 matter. 07406_ M&,UHGGQZ&QLH8FHYAFB5N 07418_ System corrupted: Autogun+ jammed. Map ----- +----------------------------------------------------+ | ???????????????????????????????? | | ???????????????????????????????? | | ???????????????????????????????? | | ???????????????????????T???????? | | ???????????????????????????????? | | ???????????????????????????????? | | ???????????????????????????????? | | ???????????????????????????????? | | ???????????????????????????????? | | ???????????????????????????????? | | ???????????????????????????????? | | ???????????????????????????????? | | ???????????????????????????????? | | ?????????????????????? ??????? | | ?????????????????????# #?????? | | ?????????????????????# #?????? | | ????????????##???????# #?????? | | ???????????# ???+=% #?????? | | ???????????# ??# [ #?????? | | ??????????? # #?????? | | ???????????# """"" + #?????? | | ???????????# """"" ""# #?????? | | ???????????# """"" T"# ##????? | | ???????????# ??""# T#????? | | ???######??# ??????# #?????# | | ???#]*]@####/######### ####### | | ???#= ] #T##%= | | ???#! *=" +% % | | ???#[%[ % # | | ???#! [Y"!*### #####+##### | | ???#[ =#==#?# %# % * # | | ???#########?# !" %* | | ?????????????######### [*! | | ????????????????????# *[ [ # | | ????????????????????# "!" | | ????????????????????# % "G" # | | ????????????????????# " # | | ????????????????????## # | | ?????????????????????# ###### | | ?????????????????????######????? | | ???????????????????????????????? | | ???????????????????????????????? | | ???????????????????????????????? | | ???????????????????????????????? | | ???????????????????????????????? | | ???????????????????????????????? | | ???????????????????????????????? | | ???????????????????????????????? | | ???????????????????????????????? | | ???????????????????????????????? | +----------------------------------------------------+ Best States ------------- Heat Dissipation 45 Energy Generation 17 Energy Capacity 300 Matter Stores 300 Matter Capacity 300 Sight Range 20 Robot Scan Range 15 Terrain Scan Density 10 Jamming Range 12 Armor Coverage 375 Resistance: KI 20 Evasion (%) 55 Recoil Reduction 2 Offensive Hacking 10 Item Schematics ----------------- Arm. Treads | -8/Materials | Scanalyzed Transmission Jammer | -8/Materials | Scanalyzed Imp. Medium Armor Plating | -8/Materials | Scanalyzed Autogun | -8/Materials | Scanalyzed System Shield | -8/Materials | Scanalyzed Robot Schematics ------------------ None Fabricated ------------ Nothing Repaired ---------- Lgt. Treads | 52% | -10/Materials Assault Rifle | 48% | -10/Materials Autogun | 11% | -9/Materials Sensor Array | 25% | -9/Materials Wheel | 20% | -9/Materials Carbon-fiber Leg | 60% | -8/Materials Studied --------- Carbon-fiber Leg | -8/Materials | Hacked Arm. Treads | -8/Materials | Hacked Autogun | -8/Materials | Hacked Alien Tech Used ----------------- None Achievements -------------- Resistances Are Futile Challenges ------------ None Game ------ Seed PlatingAlphaImmobilizer Manual? 0 Play Time 01:27:16 Cumulative 94.4 hours Start 2026.02.15 @ 01:43:25 End 2026.02.15 @ 03:36:56 Sessions 1 Manual Loads 0 Difficulty Rogue Special Mode None Game No. 111 Rogue 110 Adventurer 1 Explorer 0 Win Type - Total 0 Types 0/0/0/0/0/0/0/0/0/0 Lore% 26 Gallery% 43 Achievement% 33 Wizard Run 0 Options --------- Layout 0 ASCII 0 Keyboard 0 Movement Numpad Keybinds 0 Fullscreen 2 Font 18/SmallcapsGlow Map View 76x50 Zoom Use 0% Tactical HUD 1 Map Filters NONE Filters NONE Steam 1 RUN: 4b5155ad-ab75-4e08-854e-61d3ab92206f